bitfinex-derivatives/quotes_ETHF0:USTF0_20260221
["timestamp","ask_amount","ask_price","bid_price","bid_amount"]
[1771665725211,8.02809916,1977.9,1976.8,5.45014883]
[1771665726209,8.02809916,1977.9,1976.8,0.0043597]
[1771665726712,8.02809916,1977.9,1976.9,3.805]
[1771665726913,8.02809916,1977.9,1977.0,3.805]
[1771665727114,8.02809916,1977.9,1976.9,3.805]
[1771665727312,8.72145586,1977.7,1976.8,0.0043597]
[1771665727513,8.72145586,1977.7,1976.5,7.93623152]
[1771665727709,8.72145586,1977.7,1976.7,7.62213268]
[1771665728616,8.72145586,1977.7,1976.7,7.62775487]
[1771665731018,8.72145586,1977.7,1976.7,11.43275487]
[1771665731224,8.72145586,1977.7,1976.8,8.07593236]
[1771665733122,8.72145586,1977.7,1976.7,3.81062219]
[1771665733123,8.72145586,1977.7,1976.7,8.08155455]
[1771665734429,0.6933567,1977.7,1976.7,8.08155455]
[1771665736921,8.50843972,1977.7,1976.7,8.08155455]
[1771665738724,8.50843972,1977.7,1976.9,8.07593236]
[1771665738925,8.50843972,1977.7,1977.1,8.07593236]
[1771665742528,8.50843972,1977.7,1976.8,8.07593236]
[1771665748925,8.50843972,1977.7,1976.7,8.08155455]
[1771665749329,8.50843972,1977.7,1976.7,0.00562219]
[1771665750132,7.81508302,1977.5,1976.5,8.07593236]
[1771665750430,7.81508302,1977.5,1976.3,8.07593236]
[1771665751231,7.81508302,1977.3,1976.3,0.00502064]
[1771665751536,7.81508302,1977.3,1976.0,8.07593236]
[1771665751537,7.81508302,1977.1,1976.0,8.07593236]
[1771665751735,7.81508302,1977.0,1975.8,8.07593236]
[1771665752133,8.06807302,1976.9,1975.8,8.07593236]
[1771665752434,8.06807302,1976.9,1975.8,0.00579835]
[1771665752435,8.79100772,1976.9,1975.8,0.00579835]
[1771665752830,8.79100772,1976.9,1975.8,8.08173071]
[1771665753630,8.79100772,1976.9,1974.9,2.45555872]
[1771665753631,8.54881324,1975.7,1974.6,8.07593236]
[1771665754335,0.73373022,1975.7,1974.6,8.07593236]
[1771665754537,0.73373022,1975.7,1974.6,8.08169508]
[1771665755137,8.54881324,1975.7,1974.6,8.08169508]
[1771665755433,0.73373022,1975.7,1974.6,8.08169508]
[1771665760246,8.63897014,1975.7,1974.6,8.08169508]
[1771665767947,8.63897014,1975.7,1974.7,3.805]
[1771665768151,8.63897014,1975.7,1974.8,8.25731911]
[1771665777356,8.63897014,1975.7,1974.9,3.805]
[1771665778050,8.63897014,1975.7,1974.9,12.06231911]
[1771665779857,1.6414448,1975.4,1974.9,12.06231911]
[1771665780152,7.90523992,1975.3,1974.9,12.06231911]
[1771665780453,7.90523992,1975.1,1974.7,12.06231911]
[1771665780661,7.90523992,1975.1,1974.8,8.25731911]
[1771665781053,9.54668472,1975.2,1974.8,8.25731911]
[1771665781454,7.90523992,1975.2,1974.8,8.25731911]
[1771665781654,8.66737135,1975.3,1974.9,8.25731911]
[1771665782249,8.66737135,1975.3,1974.8,12.06231911]
[1771665782453,8.66737135,1975.3,1974.9,8.25731911]
[1771665782650,0.76213143,1975.3,1975.0,3.805]
[1771665782850,7.90523992,1975.6,1975.1,8.25731911]
[1771665783257,7.90523992,1975.6,1975.0,12.06231911]
[1771665783452,7.90523992,1975.4,1975.0,12.06231911]
[1771665784056,7.91042267,1975.4,1975.0,12.06231911]
[1771665784458,0.00518275,1975.4,1975.1,8.25731911]
[1771665785158,7.91042267,1975.4,1975.1,8.25731911]
[1771665793864,7.91042267,1975.4,1975.0,7.75824004]
[1771665794761,7.91042267,1975.4,1975.0,3.805]
[1771665794967,8.15923873,1975.0,1974.7,7.75824004]
[1771665795463,8.15923873,1975.0,1974.6,7.76400276]
[1771665797269,8.15923873,1974.8,1974.4,7.75824004]
[1771665797469,8.15923873,1974.8,1974.3,11.56324004]
[1771665798367,8.15923873,1974.8,1974.3,7.76190402]
[1771665800268,8.92993964,1975.1,1974.3,9.40334882]
[1771665801068,0.77070091,1975.1,1974.6,7.75824004]
[1771665801362,0.77070091,1975.1,1974.7,7.75824004]
[1771665801768,8.92993964,1975.1,1974.7,7.75824004]
[1771665811088,0.77070091,1975.1,1974.7,7.75824004]
[1771665811385,8.92993964,1975.1,1974.7,7.75824004]
[1771665812785,0.77070091,1975.1,1974.7,7.75824004]
[1771665813982,0.00518275,1975.4,1974.7,9.39968484]
[1771665814187,0.00518275,1975.4,1974.9,7.75824004]
[1771665814387,8.16442148,1975.4,1974.9,7.75824004]
[1771665815794,0.00518275,1975.4,1974.9,7.75824004]
[1771665817290,8.16442148,1975.4,1974.9,7.75824004]
[1771665818592,0.73373022,1975.7,1975.3,8.40242623]
[1771665818795,10.325,1976.6,1975.4,8.40242623]
[1771665818796,8.62227104,1976.0,1975.4,8.40242623]
[1771665819790,8.62720238,1976.0,1975.4,8.40242623]
[1771665820091,8.62720238,1976.0,1975.3,3.805]
[1771665821897,8.62720238,1976.0,1975.2,8.40242623]
[1771665827901,7.85619541,1975.7,1975.0,12.20742623]
[1771665828090,7.85619541,1975.7,1975.0,8.40242623]
[1771665834913,7.85619541,1975.7,1974.8,8.40242623]
[1771665838105,7.85619541,1975.6,1974.8,8.40242623]
[1771665838611,8.61736325,1975.6,1974.8,8.40242623]
[1771665839409,7.85619541,1975.5,1974.8,8.40242623]
[1771665840114,7.85619541,1975.4,1974.7,8.40242623]
[1771665847420,4.9977868,1975.6,1974.7,8.40242623]
[1771665847618,7.9808922,1975.5,1974.7,8.40242623]
[1771665849719,0.76116784,1975.6,1974.8,3.805]
[1771665849921,8.44307881,1975.6,1974.9,7.48039866]
[1771665850419,8.44307881,1975.6,1975.0,3.805]
[1771665850621,8.44307881,1975.6,1975.1,7.48039866]
[1771665852822,0.76116784,1975.6,1975.1,7.48039866]
[1771665853017,7.68191097,1975.9,1975.3,7.48039866]
[1771665853618,8.45291794,1976.0,1975.4,7.48039866]
[1771665853911,0.77100697,1976.0,1975.4,7.48039866]
[1771665854113,8.45291794,1976.0,1975.4,7.48039866]
[1771665857420,8.45291794,1976.0,1975.5,7.48039866]
[1771665860312,8.45291794,1976.0,1975.4,11.28539866]
[1771665861820,8.45291794,1976.0,1975.4,3.805]
[1771665862618,8.45291794,1976.0,1975.4,11.28539866]
[1771665863423,8.45291794,1976.0,1975.4,7.48039866]
[1771665863928,0.77100697,1976.0,1975.4,7.48039866]
[1771665864320,8.45291794,1976.0,1975.4,7.48039866]
[1771665866927,0.77100697,1976.0,1975.4,7.48039866]
[1771665868028,7.68684231,1976.0,1975.4,7.48039866]
[1771665868823,0.00493134,1976.0,1975.4,7.48039866]
[1771665869329,7.68191097,1976.2,1975.5,7.48039866]
[1771665870530,7.68764343,1976.2,1975.5,7.48039866]
[1771665875127,7.68764343,1976.2,1975.5,11.28539866]
[1771665875334,7.68764343,1976.2,1975.6,7.48039866]
[1771665881233,7.68764343,1976.2,1975.7,7.64908223]
[1771665881434,7.68764343,1976.2,1975.7,7.65542403]
[1771665891337,0.00573246,1976.2,1975.7,7.65542403]
[1771665894044,7.77141448,1976.8,1976.2,7.64908223]
[1771665894947,7.77642546,1976.8,1976.2,7.64908223]
[1771665896847,7.77141448,1977.2,1976.5,7.64908223]
[1771665897062,16.92795574,1977.5,1976.5,7.64908223]
[1771665897063,7.77141448,1977.0,1976.5,7.64908223]
[1771665897849,7.77741836,1977.0,1976.5,7.64908223]
[1771665899448,12.00803344,1977.6,1976.5,7.64908223]
[1771665899646,1.63998096,1977.4,1976.8,7.64908223]
[1771665899855,9.41139544,1977.4,1976.8,7.64908223]
[1771665900555,9.41530207,1977.4,1976.8,7.64908223]
[1771665901857,1.63998096,1977.2,1976.8,7.64908223]
[1771665902058,7.24781397,1977.2,1976.8,7.64908223]
[1771665902357,0.00390663,1977.4,1976.8,7.64908223]
[1771665902861,7.46574539,1977.4,1976.8,7.64908223]
[1771665903357,7.46183876,1977.2,1976.8,7.64908223]
[1771665904560,7.42136037,1977.4,1976.8,7.64908223]
[1771665906760,9.20866142,1977.2,1976.8,7.64908223]
[1771665907055,7.57258709,1977.4,1976.8,7.64908223]
[1771665908650,7.045085,1977.2,1976.8,7.64908223]
[1771665909565,0.00390663,1977.4,1977.0,6.76204605]
[1771665909956,7.04402626,1977.6,1977.0,6.76204605]
[1771665911059,7.04895076,1977.6,1977.0,6.76204605]
[1771665911361,0.0049245,1977.6,1977.0,6.76204605]
[1771665916962,7.04895076,1977.6,1977.0,6.76204605]
[1771665919866,7.04402626,1977.4,1977.0,6.76204605]
[1771665920067,8.68400722,1977.3,1977.0,6.01938753]
[1771665920268,7.04402626,1977.3,1977.0,6.01548096]
[1771665920870,7.04402626,1977.3,1976.5,6.76204605]
[1771665923071,8.68400722,1977.3,1976.5,6.76204605]
[1771665925575,8.68400722,1977.3,1976.6,3.805]
[1771665925774,8.68400722,1977.1,1976.7,10.56704605]
[1771665929078,8.68400722,1977.1,1976.7,3.805]
[1771665929276,8.68400722,1977.1,1976.6,10.56704605]
[1771665929779,8.68400722,1977.1,1976.7,6.76204605]
[1771665929972,8.68400722,1977.1,1976.6,10.56704605]
[1771665930679,8.68400722,1977.1,1976.6,3.805]
[1771665930876,7.04402626,1976.8,1976.5,6.76204605]
[1771665931473,7.04402626,1976.8,1976.4,10.56704605]
[1771665932480,7.04402626,1976.8,1976.4,3.805]
[1771665932977,7.04402626,1976.8,1976.4,10.56704605]
[1771665933777,7.04402626,1976.8,1976.4,3.805]
[1771665934182,8.68400722,1976.8,1976.4,3.805]
[1771665934380,8.68400722,1976.8,1976.4,10.56704605]
[1771665934679,8.68400722,1976.8,1976.4,6.76204605]
[1771665935480,8.68400722,1976.8,1976.1,6.76204605]
[1771665935680,8.68400722,1976.8,1976.2,6.76204605]
[1771665938681,8.85864004,1977.2,1976.4,6.88346958]
[1771665939882,7.21865908,1977.2,1976.4,6.88346958]
[1771665946281,7.21865908,1977.2,1976.5,6.88346958]
[1771665949181,7.1036066,1977.1,1976.5,6.88346958]
[1771665949384,7.1036066,1977.1,1976.6,6.88346958]
[1771665953097,4.23692374,1977.2,1976.6,6.88346958]
[1771665953390,11.45558282,1977.2,1976.6,6.88346958]
[1771665953785,7.20850335,1977.1,1976.6,6.88346958]
[1771665955185,7.20850335,1977.1,1976.6,10.68846958]
[1771665955386,7.20850335,1977.1,1976.7,6.88346958]
[1771665959196,11.44542709,1977.1,1976.7,6.88346958]
[1771665959696,4.23692374,1977.1,1976.7,6.88346958]
[1771665959993,11.45153064,1977.4,1976.7,6.88346958]
[1771665960185,7.2146069,1977.3,1976.7,6.88346958]
[1771665961190,7.2146069,1977.3,1976.8,6.88346958]
[1771665961496,4.23692374,1977.4,1976.8,6.88346958]
[1771665961686,11.45558282,1977.4,1976.8,6.88346958]
[1771665962395,7.21865908,1977.3,1976.8,6.88346958]
[1771665962696,11.44780386,1977.4,1976.8,6.88346958]
[1771665963088,4.23692374,1977.4,1976.8,6.88346958]
[1771665964294,11.43212077,1977.5,1976.8,6.88346958]
[1771665966596,7.12067232,1977.4,1976.8,6.88346958]
[1771665967098,7.12067232,1977.4,1976.9,6.88346958]
[1771665967392,11.37191031,1977.6,1976.9,3.805]
[1771665967598,11.37191031,1977.6,1977.0,6.92845156]
[1771665968498,7.02088374,1977.5,1977.0,6.92845156]
[1771665969099,11.26273198,1977.6,1977.0,6.92845156]
[1771665969900,6.91181602,1977.5,1977.0,6.92845156]
[1771665972607,6.90504281,1977.5,1977.0,6.92845156]
[1771665976412,6.90504281,1977.5,1976.9,10.59445719]
[1771665978113,6.90504281,1977.5,1976.9,3.805]
[1771665978715,6.62899754,1977.2,1976.5,6.78945719]
[1771665980312,6.62899754,1977.2,1976.1,6.78945719]
[1771665980514,6.62899754,1977.2,1976.1,8.29345719]
[1771665984922,6.55671185,1976.9,1976.1,8.29345719]
[1771665987919,6.55671185,1976.9,1976.1,6.78945719]
[1771665996331,5.87553306,1977.1,1976.1,6.78945719]
[1771665996332,6.25687501,1977.0,1976.1,6.78945719]
[1771665999734,6.25687501,1977.0,1976.1,8.29345719]
[1771665999932,7.83033918,1976.9,1976.1,8.29345719]
[1771666002035,6.21011075,1976.8,1976.1,8.29345719]
[1771666002236,6.21011075,1976.8,1976.3,6.56471652]
[1771666002430,6.21011075,1976.6,1976.3,6.56471652]
[1771666004730,6.16468146,1976.8,1976.3,6.56471652]
[1771666005939,6.19559393,1976.9,1976.3,6.56471652]
[1771666006439,7.83453312,1976.9,1976.3,6.56471652]
[1771666008340,12.07145686,1976.9,1976.3,6.56471652]
[1771666011038,10.37170587,1977.1,1976.5,6.56471652]
[1771666011238,6.13478213,1977.1,1976.5,6.56471652]
[1771666011542,6.11600518,1976.9,1976.5,6.56471652]
[1771666012945,6.10373677,1977.1,1976.5,6.56471652]
[1771666014147,6.08479278,1976.9,1976.5,6.56471652]
[1771666015342,1.63893919,1976.8,1976.1,6.56471652]
[1771666015544,6.1159973,1976.7,1976.1,6.56471652]
[1771666018650,6.1159973,1976.7,1975.7,6.30640973]
[1771666018651,6.07049872,1976.1,1975.7,6.57105832]
[1771666018847,0.00387583,1976.1,1975.7,6.57105832]
[1771666020447,6.35344028,1976.1,1975.7,6.57105832]
[1771666020648,0.00387583,1976.1,1975.7,6.57105832]
[1771666021450,5.87586293,1976.6,1975.9,6.56471652]
[1771666021651,1.63893919,1976.6,1975.9,6.56471652]
[1771666021846,6.4844287,1976.5,1975.7,0.0063418]
[1771666022054,6.60303574,1976.9,1975.7,6.57105832]
[1771666022055,6.4844287,1976.3,1975.7,6.57105832]
[1771666022553,6.48828765,1976.3,1975.7,6.57105832]
[1771666027558,7.75656372,1976.2,1975.7,6.57105832]
[1771666028352,6.11762453,1976.1,1975.7,6.57105832]
[1771666028554,1.63893919,1976.0,1975.7,6.57105832]
[1771666028758,6.11762453,1976.1,1975.7,6.57105832]
[1771666032262,1.63893919,1976.0,1975.7,6.57105832]
[1771666032851,7.9963264,1976.0,1975.7,6.57105832]
[1771666034258,0.00385895,1976.3,1975.7,6.57105832]
[1771666034657,6.36124616,1976.3,1975.7,6.57105832]
[1771666034851,0.00385895,1976.3,1975.7,6.57105832]
[1771666035256,6.36124616,1976.3,1975.7,6.57105832]
[1771666036861,7.9963264,1976.2,1975.7,6.57105832]
[1771666039173,6.35738721,1976.6,1975.7,6.57105832]
[1771666039377,1.63893919,1976.4,1975.8,6.31464264]
[1771666039876,7.9963264,1976.2,1975.8,6.31464264]
[1771666040076,7.9963264,1976.2,1975.8,7.81864264]
[1771666040276,8.00028465,1976.2,1975.8,7.81864264]
[1771666040670,1.64289744,1976.2,1975.8,7.81864264]
[1771666044777,8.00028465,1976.2,1975.8,7.81864264]
[1771666048183,6.35738721,1976.1,1975.8,7.81864264]
[1771666050184,6.35738721,1976.1,1975.8,6.31464264]
[1771666050585,6.35738721,1976.1,1975.7,6.32098444]
[1771666051188,6.36134546,1976.2,1975.7,6.32098444]
[1771666055090,6.35738721,1976.0,1975.7,6.32098444]
[1771666057190,7.9963264,1976.1,1975.7,6.32098444]
[1771666057689,0.00395825,1976.2,1975.7,6.32098444]
[1771666057991,7.76552152,1976.1,1975.7,6.32098444]
[1771666061696,6.13054058,1976.2,1975.7,6.32098444]
[1771666067401,6.13054058,1976.2,1975.7,0.0063418]
[1771666067704,6.13054058,1976.2,1975.7,5.98914652]
[1771666068102,0.00395825,1976.2,1975.7,5.98914652]
[1771666068303,6.13054058,1976.2,1975.7,5.98914652]
[1771666070009,6.12658233,1976.1,1975.6,5.98280472]
[1771666071108,6.12658233,1976.1,1975.6,5.98671176]
[1771666074211,10.36746432,1976.2,1975.6,5.98671176]
[1771666074413,6.13054058,1976.2,1975.6,5.98671176]
[1771666082513,0.00395825,1976.2,1975.6,5.98671176]
[1771666084017,6.13054058,1976.2,1975.6,5.98671176]
[1771666090518,0.00395825,1976.2,1975.6,5.98671176]
[1771666090823,5.85436295,1976.5,1975.7,6.13842828]
[1771666091822,5.85957021,1976.5,1975.7,6.13842828]
[1771666093926,5.85436295,1976.4,1975.7,6.13842828]
[1771666096325,0.00520726,1976.5,1975.7,6.13842828]
[1771666096525,5.85957021,1976.5,1975.8,6.13842828]
[1771666106438,5.85957021,1976.5,1975.8,7.64242828]
[1771666108630,0.00520726,1976.5,1975.8,7.64242828]
[1771666109339,5.85957021,1976.5,1975.8,7.64242828]
[1771666112443,5.85957021,1976.5,1975.9,7.64242828]
[1771666118136,5.76291963,1976.4,1975.9,7.64242828]
[1771666118338,5.76291963,1976.4,1975.9,6.13842828]
[1771666122146,7.40279922,1976.4,1975.9,6.13842828]
[1771666123249,5.76291963,1976.3,1975.9,6.13842828]
[1771666126654,5.76291963,1976.1,1975.7,6.09596397]
[1771666133263,5.76291963,1976.1,1975.6,6.09987101]
[1771666133663,5.76291963,1975.9,1975.6,0.00390704]
[1771666135257,7.40279922,1976.0,1975.6,6.09987101]
[1771666135858,5.76291963,1975.9,1975.6,6.09987101]
[1771666141258,9.99984337,1976.3,1975.6,6.09987101]
[1771666141565,5.76291963,1976.3,1975.6,6.09987101]
[1771666141957,1.63987959,1976.2,1975.6,6.09987101]
[1771666142156,7.40279922,1976.2,1975.6,6.09987101]
[1771666143868,5.76291963,1976.1,1975.6,6.09987101]
[1771666144168,5.76291963,1975.9,1975.6,0.00390704]
[1771666149265,5.76291963,1975.9,1975.3,5.39219498]
[1771666149471,5.44434006,1976.0,1975.3,5.39219498]
[1771666150174,5.44434006,1976.0,1975.3,5.39832239]
[1771666151072,5.44434006,1976.0,1975.4,5.39219498]
[1771666152775,7.08421965,1976.2,1975.4,5.39219498]
[1771666153370,5.44434006,1976.1,1975.4,5.39219498]
[1771666160970,5.44434006,1976.3,1975.6,5.39219498]
[1771666161175,5.44434006,1976.1,1975.6,5.39219498]
[1771666164580,5.44434006,1976.3,1975.6,5.39219498]
[1771666170984,5.44434006,1976.2,1975.6,5.39219498]
[1771666177490,4.97182148,1976.3,1975.7,4.98332092]
[1771666180792,4.97182148,1976.3,1975.8,4.98332092]
[1771666184087,0.00520726,1976.5,1975.8,4.98332092]
[1771666184287,4.97702874,1976.5,1975.8,4.98332092]
[1771666186589,4.97702874,1976.5,1975.9,4.98332092]
[1771666200995,4.97182148,1976.4,1975.8,1.504]
[1771666201202,4.97182148,1976.4,1975.7,4.98332092]
[1771666201597,0.00520726,1976.5,1975.7,4.98332092]
[1771666201998,4.97702874,1976.5,1975.7,4.98332092]
[1771666202602,0.00520726,1976.5,1975.7,4.98332092]
[1771666202806,4.97182148,1976.8,1975.8,4.98332092]
[1771666203494,4.97182148,1976.8,1975.9,4.98332092]
[1771666204002,4.97556716,1976.8,1975.9,4.98332092]
[1771666204197,0.00374568,1976.8,1975.9,4.98332092]
[1771666204394,0.00374568,1976.8,1976.1,4.98332092]
[1771666204599,6.35003574,1977.4,1976.4,4.98332092]
[1771666204600,4.97182148,1977.4,1976.4,4.98332092]
[1771666205203,4.97182148,1977.2,1976.2,4.98332092]
[1771666205603,4.97182148,1976.9,1976.2,4.98332092]
[1771666209107,4.97182148,1976.9,1975.7,4.20467368]
[1771666209108,4.84992628,1976.6,1975.7,4.97236708]
[1771666212000,4.60770623,1976.5,1975.7,4.97236708]
[1771666215112,4.60770623,1976.6,1975.7,4.97236708]
[1771666215504,7.91803885,1977.0,1976.2,4.79437181]
[1771666215505,8.84462997,1977.0,1976.2,4.79437181]
[1771666215706,4.23692374,1977.1,1976.2,4.79437181]
[1771666215905,4.60770623,1977.0,1976.2,4.79437181]
[1771666217605,0.00535022,1977.2,1976.2,4.79437181]
[1771666217805,0.25288,1977.8,1976.2,4.79437181]
[1771666217806,4.23811562,1977.7,1977.0,4.79437181]
[1771666218002,4.60770623,1978.3,1977.0,4.79437181]
[1771666218403,4.60770623,1978.0,1977.0,4.79437181]
[1771666218603,1.63969737,1977.8,1977.0,4.79437181]
[1771666218812,4.60770623,1977.7,1977.0,4.80063398]
[1771666219003,4.60770623,1977.4,1976.6,4.79437181]
[1771666220110,0.00587787,1977.8,1976.6,4.79437181]
[1771666220111,4.60770623,1977.1,1976.6,4.79437181]
[1771666220410,4.60770623,1977.1,1976.6,4.80069515]
[1771666227513,4.60770623,1977.1,1976.6,0.00632334]
[1771666232415,4.60770623,1977.1,1976.6,4.80069515]
[1771666233514,4.60770623,1977.1,1976.6,0.00632334]
[1771666235714,4.60770623,1976.9,1976.2,4.79437181]
[1771666235919,4.60770623,1976.9,1976.0,4.79437181]
[1771666236120,4.60770623,1976.9,1975.9,4.79437181]
[1771666236716,4.60770623,1976.9,1975.9,4.79885499]
[1771666239518,5.13688011,1976.7,1975.9,4.79885499]
[1771666240428,5.13688011,1976.7,1975.9,0.00448318]
[1771666241630,5.13688011,1976.7,1975.9,5.10981246]
[1771666244134,5.13688011,1976.6,1975.9,5.10981246]
[1771666245835,5.13688011,1976.8,1976.1,5.10532928]
[1771666248531,5.13688011,1976.8,1976.3,5.10532928]
[1771666249434,5.13688011,1976.8,1976.1,6.60932928]
[1771666249635,5.13688011,1976.6,1976.1,6.60932928]
[1771666249832,5.13688011,1976.6,1976.0,1.504]
[1771666250036,5.13688011,1976.4,1976.0,1.504]
[1771666250237,5.14305155,1976.4,1975.9,5.10981246]
[1771666251042,5.14305155,1976.4,1975.9,0.00448318]
[1771666263146,5.14305155,1976.4,1975.9,5.10981246]
[1771666264546,5.14305155,1976.4,1975.9,0.00448318]
[1771666264851,5.13688011,1976.1,1975.9,0.00448318]
[1771666265044,5.13688011,1976.1,1975.7,1.504]
[1771666265948,5.13688011,1976.1,1975.7,1.51035331]
[1771666266652,5.13688011,1976.1,1975.7,0.00635331]
[1771666269154,5.13688011,1976.1,1975.6,1.504]
[1771666269358,5.13688011,1976.1,1975.4,5.68935202]
[1771666269655,4.52480094,1975.9,1975.4,5.68935202]
[1771666270053,4.52480094,1975.9,1975.5,5.01724984]
[1771666270255,4.52480094,1975.9,1975.4,6.52703913]
[1771666270554,4.52480094,1976.2,1975.5,5.01724984]
[1771666271757,4.52480094,1976.1,1975.5,5.01724984]
[1771666273658,4.52480094,1976.1,1975.6,5.01724984]
[1771666281960,4.52480094,1976.3,1975.6,5.01724984]
[1771666282262,4.52480094,1976.3,1975.7,5.01724984]
[1771666282658,4.53097238,1976.4,1975.9,5.01724984]
[1771666284863,4.52480094,1976.3,1975.9,5.01724984]
[1771666285564,4.52480094,1976.3,1975.7,5.01724984]
[1771666289865,4.52480094,1976.1,1975.5,5.01724984]
[1771666290359,4.52480094,1976.1,1975.5,9.20260186]
[1771666290559,4.52480094,1976.3,1975.7,5.01724984]
[1771666297272,4.52480094,1976.3,1975.8,5.01724984]
[1771666299368,4.52480094,1976.3,1975.9,4.48633571]
[1771666301276,4.52480094,1976.3,1975.8,5.99033571]
[1771666301876,4.52480094,1976.3,1975.9,4.48633571]
[1771666310078,4.52480094,1976.3,1975.7,5.99033571]
[1771666310284,4.52480094,1976.3,1975.8,4.48633571]
[1771666310881,4.52480094,1976.3,1975.7,1.504]
[1771666311082,4.52480094,1976.3,1975.8,1.504]
[1771666311377,4.52480094,1976.3,1975.8,5.99033571]
[1771666311985,4.52480094,1976.3,1975.8,1.504]
[1771666312388,4.52480094,1976.3,1975.8,5.99033571]
[1771666313088,4.52480094,1976.3,1975.7,4.48633571]
[1771666313587,4.52480094,1976.3,1975.6,4.48633571]
[1771666313781,4.42637113,1976.1,1975.4,0.00578929]
[1771666319087,4.42637113,1976.1,1975.4,4.492125]
[1771666323091,4.42637113,1976.1,1975.5,4.48633571]
[1771666323891,4.42637113,1976.3,1975.5,4.48633571]
[1771666325192,0.00617144,1976.4,1975.5,4.48633571]
[1771666325387,4.43254257,1976.4,1975.5,4.48633571]
[1771666325983,4.43254257,1976.4,1975.6,4.48633571]
[1771666326188,4.43254257,1976.4,1975.7,4.48633571]
[1771666328889,4.43254257,1976.4,1975.8,1.504]
[1771666329089,4.43254257,1976.4,1975.9,4.55080327]
[1771666332796,0.00617144,1976.4,1975.9,4.55080327]
[1771666333593,4.6588107,1976.4,1975.9,4.55080327]
[1771666337401,4.6588107,1976.4,1975.8,4.56424407]
[1771666339802,4.6588107,1976.4,1975.6,4.20034136]
[1771666339998,4.6588107,1976.4,1975.6,8.76458543]
[1771666341002,4.6588107,1976.4,1975.7,4.56424407]
[1771666343707,4.6588107,1976.4,1975.7,6.06824407]
[1771666346006,4.6588107,1976.4,1975.6,5.70434136]
[1771666346309,4.6588107,1976.4,1975.6,6.06824407]
[1771666347305,4.6588107,1976.4,1975.6,1.504]
[1771666347809,4.6588107,1976.4,1975.5,4.56424407]
[1771666348402,4.6588107,1976.4,1975.5,8.76458543]
[1771666349304,4.65263926,1976.3,1975.5,4.56424407]
[1771666350511,4.65263926,1976.3,1975.4,4.20613065]
[1771666350911,4.65263926,1976.3,1975.5,4.56424407]
[1771666356212,4.65263926,1976.3,1975.4,0.00578929]
[1771666356213,4.65263926,1976.3,1975.4,4.57003336]
[1771666358119,4.65263926,1976.3,1975.4,0.00578929]
[1771666361828,4.10681687,1976.0,1975.4,0.00578929]
[1771666366026,4.10681687,1975.7,1975.4,0.00578929]
[1771666373335,4.10681687,1976.0,1975.4,4.50881358]
[1771666375633,4.10681687,1975.8,1975.4,0.00578929]
[1771666379936,4.10681687,1975.6,1975.0,8.70336565]
[1771666380336,4.10681687,1975.6,1975.1,4.50302429]
[1771666381032,4.10681687,1975.6,1975.1,4.50757742]
[1771666381734,4.10681687,1975.6,1975.1,0.00455313]
[1771666381934,4.10681687,1975.6,1975.1,4.50757742]
[1771666382440,4.10681687,1975.9,1975.1,4.50757742]
[1771666388543,4.06275131,1975.7,1975.1,4.50757742]
[1771666392239,4.06275131,1975.7,1975.1,0.00455313]
[1771666392444,4.19351344,1975.4,1975.1,4.27275152]
[1771666392941,4.19351344,1975.4,1975.1,0.00455313]
[1771666404845,4.19351344,1975.4,1974.7,8.46853975]
[1771666405040,4.19351344,1975.4,1974.8,4.26819839]
[1771666405247,4.19351344,1975.3,1974.8,4.26819839]
[1771666405948,4.19351344,1975.3,1974.8,4.27317362]
[1771666416057,4.19351344,1975.3,1974.8,0.00497523]
[1771666419962,3.95206242,1975.1,1974.8,0.00497523]
[1771666420559,3.95206242,1975.1,1974.3,8.13536763]
[1771666420860,3.95206242,1974.9,1974.4,3.93502627]
[1771666421458,3.95206242,1974.9,1974.3,8.13536763]
[1771666421663,3.95721459,1974.9,1974.3,8.14192658]
[1771666423357,3.95721459,1974.9,1974.3,3.94158522]
[1771666430570,3.95721459,1974.9,1974.3,0.00655895]
[1771666432366,3.95721459,1974.9,1974.3,3.94158522]
[1771666434365,3.95721459,1974.9,1974.3,0.00655895]
[1771666438770,3.95206242,1974.8,1973.9,3.93502627]
[1771666439872,3.95206242,1974.8,1973.9,3.93870149]
[1771666441779,3.95721459,1974.9,1973.9,3.93870149]
[1771666442376,3.95721459,1974.9,1974.0,3.93502627]
[1771666444783,3.95721459,1974.9,1974.2,3.93502627]
[1771666452590,3.95721459,1974.9,1974.0,9.89520114]
[1771666452790,3.95721459,1974.9,1974.1,4.18706675]
[1771666455590,3.95721459,1974.9,1974.0,8.39120114]
[1771666455986,4.07313496,1974.8,1974.0,4.18706675]
[1771666458489,4.07313496,1974.8,1973.9,4.19074197]
[1771666461795,4.07313496,1974.8,1973.9,0.00367522]
[1771666462287,4.07313496,1974.8,1973.9,4.19074197]
[1771666463695,4.07313496,1974.5,1973.9,0.00367522]
[1771666465293,4.07313496,1974.5,1973.9,4.19074197]
[1771666468694,4.07313496,1974.7,1973.9,4.19074197]
[1771666468899,4.07313496,1974.7,1974.0,4.18706675]
[1771666469298,4.07828713,1974.9,1974.0,4.18706675]
[1771666471400,4.07828713,1974.9,1974.2,4.18706675]
[1771666472604,4.07828713,1974.9,1974.3,4.18706675]
[1771666476106,0.00515217,1974.9,1974.3,5.69106675]
[1771666476307,0.00515217,1974.9,1974.4,4.18706675]
[1771666478712,3.96567521,1975.1,1974.4,4.18706675]
[1771666479114,3.96567521,1975.3,1974.4,4.18706675]
[1771666479411,3.96567521,1975.3,1974.6,3.81866996]
[1771666479608,3.97209201,1975.3,1974.6,3.81866996]
[1771666481309,3.96567521,1975.1,1974.2,3.81866996]
[1771666482609,3.96567521,1974.8,1974.0,3.81866996]
[1771666487923,3.96567521,1974.6,1974.0,3.81866996]
[1771666488223,3.96567521,1974.6,1974.1,3.81866996]
[1771666489319,3.96567521,1974.6,1973.7,3.81866996]
[1771666489320,3.96567521,1974.1,1973.7,3.81866996]
[1771666490422,3.96567521,1974.1,1973.7,3.82237944]
[1771666490717,3.96567521,1974.3,1973.7,3.82237944]
[1771666493927,3.96567521,1974.1,1973.7,3.82237944]
[1771666496028,5.60826437,1974.2,1973.7,3.82237944]
[1771666496336,3.96567521,1974.4,1973.7,3.82237944]
[1771666496630,3.96567521,1974.4,1973.8,3.81866996]
[1771666496832,3.96567521,1974.3,1973.8,3.81866996]
[1771666501230,3.96567521,1974.4,1973.8,3.81866996]
[1771666501833,3.96567521,1974.5,1974.0,3.81866996]
[1771666505434,3.96567521,1975.0,1974.3,3.81866996]
[1771666505928,3.96567521,1974.9,1974.3,3.81866996]
[1771666506235,3.96567521,1974.7,1974.1,3.81866996]
[1771666507434,3.7204937,1974.9,1974.3,3.51218339]
[1771666507635,3.7204937,1975.0,1974.5,3.51218339]
[1771666508437,3.7204937,1975.2,1974.5,3.51218339]
[1771666508627,3.7204937,1975.2,1974.6,3.51218339]
[1771666511537,3.67211765,1975.1,1974.4,3.78906477]
[1771666515835,3.67211765,1974.8,1974.3,5.29306477]
[1771666516543,3.67211765,1974.8,1974.3,1.504]
[1771666517238,3.67211765,1974.8,1974.3,5.29306477]
[1771666518738,3.67211765,1974.8,1974.3,3.78906477]